Cogmind - Beta 15 @@@ ROGUE MODE // 2025.07.24 @ 12:55:59 Player: Jiber Result: Destroyed by 6S-2AM(R) with Subdweller Machine Gun Performance ------------- Evolutions (0) 0 Regions Visited (2) 400 Robots Destroyed (8) 40 Value Destroyed (166) 166 Prototype IDs (2) 40 Alien Tech Used (0) 0 Bonus (0) 0 TOTAL SCORE: 646 Bonus ------- None Cogmind --------- Core Integrity 0/250 Matter 271/300 Energy 100/100 System Corruption 0% Temperature Cool (0) Movement Core (50) Location -10/Subcaves Parts ------- > --- POWER (1) -------- (None) > --- PROPULSION (2) --- (None) > --- UTILITY (2) ------ Subdweller Optics Targeting Computer > --- WEAPON (2) ------- (None) > --- INVENTORY (5) ---- Subdweller Power Source Disposable Heat Sink Medium Storage Unit Sensor Array Tractor Beam Peak State ------------ > --- POWER ------------ Ion Engine > --- PROPULSION ------- Aluminum Leg Aluminum Leg > --- UTILITY ---------- Small Storage Unit Tractor Beam > --- WEAPON ----------- Light Assault Rifle Light Assault Rifle > --- INVENTORY -------- (None) [Rating: 7] Favorites ----------- Power Ion Engine Engine Ion Engine Propulsion Aluminum Leg Treads Light Treads Leg Aluminum Leg Utility Targeting Computer Device Sensor Array Storage Medium Storage Unit Processor Targeting Computer Protection Light Armor Plating Weapon Light Assault Rifle Ballistic Gun Light Assault Rifle Build | -11 -10 -10 ------- Run | Yrd Mat Sub Slots Evolved . | . . . Power . | . . . Propulsion . | . . . Utility . | . . . Weapon . | . . . Parts Attached 15 | 7 6 2 Power 2 | 1 1 . Engine 2 | 1 1 . Core . | . . . Reactor . | . . . Propulsion 3 | 2 . 1 Treads 1 | . . 1 Leg 2 | 2 . . Wheel . | . . . Hover . | . . . Flight . | . . . Utility 7 | 2 4 1 Device 3 | 1 1 1 Storage 2 | 1 1 . Processor 1 | . 1 . Hackware . | . . . Protection 1 | . 1 . Artifact . | . . . Weapon 3 | 2 1 . Energy Gun . | . . . Energy Cannon . | . . . Ballistic Gun 3 | 2 1 . Ballistic Cannon . | . . . Launcher . | . . . Special Weapon . | . . . Impact Weapon . | . . . Slashing Weapon . | . . . Piercing Weapon . | . . . Special Melee Weapon . | . . . Unidentified Prototypes . | . . . Parts Lost 8 | . . 8 Power 1 | . . 1 Propulsion 3 | . . 3 Utility 1 | . . 1 Weapon 3 | . . 3 Highest Loss Streak 5 | . . 5 To Critical Strikes . | . . . Average Backups 3 | 1 2 4 Power . | . . 1 Propulsion . | . . . Utility 2 | . 2 3 Weapon . | . . . Tool/Special . | . . . Unused Backups 2 | . . 2 Power 1 | . . 1 Propulsion . | . . . Utility 1 | . . 1 Weapon . | . . . Tool/Special . | . . . Average Slot Usage (%) 87 | . 100 76 Engine 13 | . 14 12 Treads 4 | . . 8 Leg 17 | . 28 8 Device 10 | . 13 7 Storage 2 | . 5 . Processor 7 | . . 14 Protection 6 | . 8 4 Ballistic Gun 22 | . 28 18 Peak Build Rating 7 | 7 7 7 Average Rating 6 | 3 7 5 On Entrance 4 | . 7 7 Naked Turns . | . . . Heaviest Build 18 | 13 18 8 Greatest Support 20 | 20 20 20 Greatest Overweight (x) 1 | . . 1 Average Overweight (x) . | . . . Largest Inventory Capacity 10 | 8 10 5 Average Capacity 5 | 6 6 5 Most Carried 5 | 5 5 5 Average Carried 3 | 1 2 4 Final Capacity 8 | 8 5 5 Final Carried 5 | . 5 5 Class Distribution -------------------- 100% | Mutant Dominant Class ---------------- Mutant | -10/Materials Mutant | -10/Subcaves Resources | -11 -10 -10 ----------- Run | Yrd Mat Sub Matter Collected 419 | 270 61 88 Remotely 134 | 134 . . Salvage Created 239 | 56 95 88 Parts 20 | 4 11 5 Haulers Intercepted . | . . . Recyclers Shooed . | . . . Parts Field Recycled . | . . . Retrieved Matter . | . . . Parts Self-Destructed . | . . . Prevented . | . . . Kills | -11 -10 -10 ------- Run | Yrd Mat Sub Combat Hostiles Destroyed 6 | . 4 2 Guns 6 | . 4 2 Classes Destroyed 5 | 1 3 1 Recycler 1 | 1 . . Watcher 1 | . 1 . Swarmer 3 | . 3 . Grunt 1 | . 1 . Subdweller 2 | . . 2 Best Kill Streak 2 | 1 2 2 Combat Bots Only 2 | . 2 2 Max Kills in Single Turn 1 | 1 1 1 Gunslinging . | . . . Exploded . | . . . Melee . | . . . Uniques/NPCs Destroyed . | . . . Combat | -11 -10 -10 -------- Run | Yrd Mat Sub Hostile Shots Fired 98 | . 47 51 Missed 25 | . 13 12 Hits 73 | . 34 39 Projectile 73 | . 34 39 Critical Strikes 1 | . . 1 Damage Taken 1071 | . 288 783 Core 250 | . 23 227 Absorbed by Shields . | . . . Core Remaining (%) 100 | 100 . . Volleys Fired 70 | 2 31 37 Largest 2 | 2 2 2 Hottest 40 | 40 40 40 Shots Fired 118 | 4 62 52 Gun 118 | 4 62 52 Cannon . | . . . Launcher . | . . . Special . | . . . Kinetic 118 | 4 62 52 Thermal . | . . . Explosive . | . . . Electromagnetic . | . . . Robot Hit Streak 28 | 4 8 28 Robot Miss Streak 5 | . 5 2 Penetration Max . | . . . Secondary Targets . | . . . Shots Hit Robots 87 | 4 35 48 Core Hits 23 | 3 13 7 Critical Kills 1 | . 1 . Critical Parts Destroyed . | . . . Critical Strikes 1 | . 1 . Destroy 1 | . 1 . Melee Attacks . | . . . Impact . | . . . Slashing . | . . . Piercing . | . . . Sneak Attacks . | . . . Combat Hostiles . | . . . Follow-up Attacks . | . . . Damage Inflicted 597 | 31 276 290 Guns 597 | 31 276 290 Cannons . | . . . Explosions . | . . . Melee . | . . . Ramming . | . . . Kinetic 597 | 31 276 290 Thermal . | . . . Explosive . | . . . Electromagnetic . | . . . Impact . | . . . Slashing . | . . . Piercing . | . . . Highest Corruption . | . . . Average Corruption . | . . . Corruption Purged . | . . . Corruption Blocked . | . . . Overload Shots . | . . . Overflow Damage . | . . . Projectiles . | . . . Explosions . | . . . Melee . | . . . Knockbacks . | . . . Impact . | . . . Kinetic . | . . . Secondary . | . . . Self-Inflicted Damage . | . . . Shots . | . . . Rammed . | . . . Targets Rammed . | . . . Kicked . | . . . Crushed . | . . . Highest Temperature 33 | . 33 . Average Temperature 9 | . 9 . Received Heat Transfer 114 | . 48 66 Siege Activations . | . . . Martial Activations . | . . . Shielding Activations . | . . . Robots Disrupted . | . . . Combat Hostiles . | . . . Robots Corrupted . | . . . Combat Hostiles . | . . . Parts Fried . | . . . Impact Corruptions . | . . . Robots Melted . | . . . Combat Hostiles . | . . . Parts Melted . | . . . Heat Transferred . | . . . Parts Sabotaged . | . . . Parts Stolen . | . . . Parts Stripped . | . . . Power Chain Reactions . | . . . Alert | -11 -10 -10 ------- Run | Yrd Mat Sub Maximum Alert Level . | . . . Low Security (%) 100 | 100 100 . Level 1 . | . . . Level 2 . | . . . Level 3 . | . . . Level 4 . | . . . Level 5 . | . . . High Security . | . . . Max Security . | . . . Peak Influence 62 | 5 62 . Initial . | . . . Average 11 | . 13 . Influence Increases 117 | 5 112 . Destroy 0b10 Robot/C 80 | . 80 . Destroy 0b10 Robot/NC 10 | 5 5 . Destroy Leader 12 | . 12 . Lose Combat Pursuer 15 | . 15 . Influence Decreases 117 | 5 70 42 Entered New Map 21 | . . 21 Time Decay 96 | 5 70 21 Squads Dispatched 1 | . 1 . Investigation . | . . . Extermination . | . . . Reinforcement 1 | . 1 . Assault . | . . . Garrison . | . . . Intercept . | . . . Searches Triggered . | . . . Construction Impeded . | . . . Haulers Reinforced . | . . . Active Scanning Responses . | . . . Cargo Convoy Interrupts . | . . . Stealth | -11 -10 -10 --------- Run | Yrd Mat Sub Distress Signals 1 | . 1 . Communications Jammed . | . . . Distress Signals . | . . . Times Spotted 11 | . 8 3 Peak Tracking Total 5 | . 5 2 Tactical Retreats 1 | . 1 . Traps | -11 -10 -10 ------- Run | Yrd Mat Sub Traps Triggered . | . . . Indirectly . | . . . Trap Hack Attempts . | . . . Triggered . | . . . Disarmed . | . . . Reprogrammed . | . . . Reused . | . . . Traps Extracted . | . . . Installed . | . . . Triggered . | . . . Machines | -11 -10 -10 ---------- Run | Yrd Mat Sub Machines Disabled . | . . . Max in Single Turn . | . . . Machines Repaired . | . . . Machines Dismantled . | . . . Machines Sabotaged . | . . . Overloaded Fab Kills . | . . . Hacking | -11 -10 -10 --------- Run | Yrd Mat Sub Machines Accessed 2 | . 2 . Terminals 1 | . 1 . Fabricators . | . . . Repair Stations 1 | . 1 . Recycling Units . | . . . Scanalyzers . | . . . Garrison Access . | . . . Total Hacks 4 | . 4 . Successful 3 | . 3 . Failed 1 | . 1 . Catastrophic . | . . . Database Lockouts . | . . . Manual . | . . . Terminals 3 | . 3 . Fabricators . | . . . Repair Stations 1 | . 1 . Recycling Units . | . . . Scanalyzers . | . . . Garrison Access . | . . . Terminal Hacks 2 | . 2 . Prototype ID Bank 1 | . 1 . Dispatch Records 1 | . 1 . Fabricator Hacks . | . . . Repair Station Hacks 1 | . 1 . Scan Component 1 | . 1 . Recycling Unit Hacks . | . . . Scanalyzer . | . . . Garrison Access Hacks . | . . . Unauthorized Hacks . | . . . Terminals . | . . . Fabricators . | . . . Repair Stations . | . . . Recycling Units . | . . . Scanalyzers . | . . . Garrison Access . | . . . Data Cores Recovered . | . . . Used . | . . . Hacking Detections 2 | . 2 . Full Trace Events . | . . . Feedback Events . | . . . Feedback Blocked . | . . . Robot Schematics Acquired . | . . . Robots Built . | . . . Authchips . | . . . Time . | . . . Total Robot Build Rating . | . . . Part Schematics Acquired . | . . . Parts Built . | . . . Authchips . | . . . Time . | . . . Total Part Build Rating . | . . . Parts Repaired . | . . . Time . | . . . Parts Recycled . | . . . Recycled Matter . | . . . Retrieved Matter . | . . . Retrieved Components . | . . . Parts Scanalyzed . | . . . Part Schematics Acquired . | . . . Parts Damaged . | . . . Bothacking | -11 -10 -10 ------------ Run | Yrd Mat Sub Used RIF Installer . | . . . Robots Hacked . | . . . Non-combat . | . . . Combat . | . . . Robot Hacks Applied . | . . . Relay Couplers Released . | . . . Fabnet Peak Effective % . | . . . Robots Rewired . | . . . Allies Hacked . | . . . Hacks Repelled . | . . . Allies | -11 -10 -10 -------- Run | Yrd Mat Sub Total Allies . | . . . Largest Group . | . . . Highest-Rated Group . | . . . Highest-Rated Ally . | . . . Total Orders . | . . . Ally Attacks . | . . . Total Damage . | . . . Kills . | . . . Allies Corrupted . | . . . Allies Melted . | . . . Intel | -11 -10 -10 ------- Run | Yrd Mat Sub Active Infowar (turns) 394 | . 206 188 Optics 188 | . . 188 Sensors 206 | . 206 . Robot Analysis Total . | . . . Derelict Logs Recovered . | . . . Drone Launches . | . . . Drone Recoveries . | . . . Exploration | -11 -10 -10 ------------- Run | Yrd Mat Sub Turns Passed 647 | 54 280 313 Spaces Moved 346 | 38 154 154 Core 20 | 13 . 7 Treads 104 | . . 104 Legs 222 | 25 154 43 Wheels . | . . . Hover . | . . . Flight . | . . . Fastest Speed 50 | 50 120 50 Average Speed 128 | 96 120 145 Slowest Speed 160 | 120 120 160 Overloaded Moves . | . . . Propulsion Burnouts . | . . . Robots Hopped . | . . . Potential Cave-ins . | . . . Cave-ins Triggered . | . . . Exploration Rate (%) 14 | 3 28 11 Regions Visited 2 Branch Regions 1 Pre-discovered Areas . | . . . Known Exits Taken . | . . . Unknown Exits Taken 2 | 1 1 . Scrap Searched . | . . . Spaces Dug . | . . . Terrain Destroyed . | . . . Melee . | . . . Projectile . | . . . AOE . | . . . Terrain Rammed . | . . . Walls Destroyed . | . . . Machines Disabled . | . . . Actions | -11 -10 -10 --------- Run | Yrd Mat Sub Total 450 | 52 197 201 Wait 2 | . . 2 Move 344 | 37 153 154 Hop . | . . . Pick Up 15 | 6 6 3 Fast Attach 2 | 1 . 1 Attach 8 | 6 . 2 Detach . | . . . Swap 7 | . 6 1 Drop 2 | . 1 1 Fire 70 | 2 31 37 Melee . | . . . Ram . | . . . Kick . | . . . Crush . | . . . Escape Stasis . | . . . Rewire . | . . . Trap . | . . . Miscellaneous . | . . . Route ------- -11/Scrapyard -10/Materials -10/Subcaves History --------- Turn | Location | Event 9 | -11/Scrapyard | Discovered new exit (range 16) 55 | -11/Scrapyard | Entered Materials 322 | -10/Materials | Discovered new exit (range 12) 332 | -10/Materials | Build established: Mutant 335 | -10/Materials | Entered Subcaves 336 | -10/Subcaves | Approached by a straggling Scientist 434 | -10/Subcaves | Core integrity fell below 50% 463 | -10/Subcaves | Lost 5 parts (2n1u2w) 628 | -10/Subcaves | Core integrity fell below 20% 648 | -10/Subcaves | Destroyed by 6S-2AM(R) with Subdweller Machine Gun Last Messages --------------- 00442_ Acquired 43 matter. 00443_ Acquired 44 matter. 00446_ Subatomizers dissect the Disposable Heat Sink. 00446_ Acquired Lgt. Treads. 00449_ Acquired Sub. Power Source. 00452_ Dropped Lgt. Ion Engine. 00454_ Acquired Disposable Heat Sink. 00455_ Acquired 1 matter. 00460_ Subatomizers dissect the Disposable Heat Sink. 00460_ Acquired Sub. Optics. 00474_ Subatomizers dissect the Disposable Heat Sink. O1-39Q(c): "I think it's somewhere east of here" 00619_ Ion Engine destroyed. O1-39Q(c): "I think it's somewhere east of here" 00643_ Lgt. Assault Rifle destroyed. 00646_ Lgt. Treads destroyed. Map ----- +----------------------------------------------------+ | ?????????????????????????????????????????????????? | | ?????????????????????????????????????????????????? | | ?????????????????????????????????????????????????? | | ?????????????????????????????????????????????????? | | ?????????????????????????????????????????????????? | | ?????????????????????????????????????????????????? | | ???##????????????????????????????????????????????? | | ???? ###?????????????????????????????????????????? | | ?#### ##????????????????????????????????????????? | | ## #????????????????????????????????????????? | | # #???????###???????????????????????????????? | | ######### ######??????????????????????????? | | ## ####???????????????????????? | | #### #???????????????????????? | | ###??## ## #????????????????????????? | | ??????########### ## #????????????????????????? | | ???????????########## #????????????????????????? | | ??????????## ##??## ##????????????????????????? | | ??????????# #### ##????????????????????????? | | #?#######???# ## ###??????????????????????? | | ### ###??# #??????????????????????? | | #### # #????????????? ??????? | | ## ## # ##??????## ??????? | | ## #### ?????? | | # ###### # R"" ?????? | | # ## ### #???#"" "@ " ?????? | | # ########?## #??# " " ## ### ?????? | | # ##????????? #??# " "##?##??????# ??????????? | | ###?????????# ??###" "????????????????????????? | | ????????????# #???#" ???????????????????????? | | ????????????# ##???# ???????????????????????? | | ????????????## #???? ???????????????????????? | | ????????????? ??? ????????????????????????? | | ????????????? ?? ???????????????????????? | | ?????????????## ??#######???????????????????????? | | ???????????????###???????????????????????????????? | | ?????????????????????????????????????????????????? | | ?????????????????????????????????????????????????? | | ?????????????????????????????????????????????????? | | ?????????????????????????????????????????????????? | | ?????????????????????????????????????????????????? | | ?????????????????????????????????????????????????? | | ?????????????????????????????????????????????????? | | ?????????????????????????????????????????????????? | | ?????????????????????????????????????????????????? | | ?????????????????????????????????????????????????? | | ?????????????????????????????????????????????????? | | ?????????????????????????????????????????????????? | | ?????????????????????????????????????????????????? | | ?????????????????????????????????????????????????? | +----------------------------------------------------+ Best States ------------- Heat Dissipation 25 Energy Generation 10 Energy Capacity 250 Matter Stores 296 Matter Capacity 300 Sight Range 21 Robot Scan Range 14 Terrain Scan Density 10 Armor Coverage 150 Evasion (%) 55 Targeting Accuracy 5 Recoil Reduction 1 Item Schematics ----------------- None Robot Schematics ------------------ None Fabricated ------------ Nothing Repaired ---------- Nothing Alien Tech Used ----------------- None Achievements -------------- Use The Force Challenges ------------ None Game ------ Seed LongswordHeartDeflector Manual? 0 Play Time 00:12:05 Cumulative 7.3 hours Start 2025.07.24 @ 12:45:23 End 2025.07.24 @ 12:55:59 Sessions 1 Manual Loads 0 Difficulty Rogue Special Mode None Game No. 12 Rogue 12 Adventurer 0 Explorer 0 Win Type - Total 0 Types 0/0/0/0/0/0/0/0/0/0 Lore% 5 Gallery% 13 Achievement% 14 Wizard Run 0 Options --------- Layout 1 ASCII 0 Keyboard 0 Movement Mouse Keybinds 0 Fullscreen 1 Font 32/SmallcapsGlow Map View 50x35 Zoom Use 0% Tactical HUD 1 Map Filters NONE Filters NONE Steam 1 RUN: fa0aff1b-68ee-4d5b-9592-26dc9c467dd6